bitfinex/quotes_BTCUSD_20241223
["timestamp","ask_amount","ask_price","bid_price","bid_amount"]
[1734987242286,0.214375,93295.0,93284.0,0.03707309]
[1734987242698,0.214375,93295.0,93284.0,0.03907309]
[1734987242896,0.27235,93294.0,93279.0,0.0778]
[1734987243278,0.214395,93286.0,93279.0,0.0778]
[1734987243695,0.42879,93286.0,93270.0,0.03715849]
[1734987244458,0.214389,93289.0,93270.0,0.03677453]
[1734987244658,0.214406,93281.0,93270.0,0.03677453]
[1734987246760,0.214399,93284.0,93270.0,0.07283358]
[1734987246966,0.004,93281.0,93280.0,0.03605905]
[1734987247826,0.00053011,93289.0,93280.0,0.03605905]
[1734987248212,0.001,93281.0,93280.0,0.03605905]
[1734987248389,0.001,93281.0,93280.0,0.2534199]
[1734987248596,0.00053011,93289.0,93280.0,0.2534199]
[1734987248597,0.00053011,93289.0,93288.0,0.25044805]
[1734987248746,0.00053011,93289.0,93288.0,0.28722258]
[1734987248978,0.00053011,93289.0,93288.0,0.4678089]
[1734987249561,0.00053011,93289.0,93288.0,0.4538089]
[1734987250238,0.00153011,93289.0,93288.0,0.4568089]
[1734987250496,0.00153011,93289.0,93288.0,0.4798089]
[1734987250733,0.00153011,93289.0,93288.0,0.47461905]
[1734987250948,0.00153011,93289.0,93288.0,0.51931905]
[1734987251157,0.00053011,93289.0,93288.0,0.52031905]
[1734987251371,0.00053011,93289.0,93288.0,0.48426]
[1734987251577,0.00053011,93289.0,93288.0,0.48326]
[1734987251779,0.00053011,93289.0,93288.0,0.51931905]
[1734987251986,0.00153011,93289.0,93288.0,0.52431905]
[1734987252454,0.00153011,93289.0,93288.0,0.52231905]
[1734987252803,0.00153011,93289.0,93288.0,0.52731905]
[1734987253001,0.00053011,93289.0,93288.0,0.32593005]
[1734987253448,0.00253011,93289.0,93288.0,0.32593005]
[1734987253600,0.00253011,93289.0,93288.0,0.1851692]
[1734987254007,0.00353011,93289.0,93288.0,0.005]
[1734987254235,0.02233832,93289.0,93279.0,0.03677453]
[1734987254445,0.02233832,93289.0,93279.0,0.02877453]
[1734987254648,0.00153011,93289.0,93288.0,0.008]
[1734987254863,0.428778,93288.0,93279.0,0.02877453]
[1734987255271,0.214392,93287.0,93278.0,0.02877453]
[1734987255503,0.214392,93287.0,93277.0,0.02877453]
[1734987255700,0.214396,93285.0,93276.0,0.10397453]
[1734987255906,0.214409,93280.0,93274.0,0.03605905]
[1734987256159,0.21441,93279.0,93270.0,8.55e-05]
[1734987256362,0.214409,93280.0,93270.0,8.55e-05]
[1734987256584,0.214412,93278.0,93270.0,8.55e-05]
[1734987256789,0.214417,93276.0,93270.0,8.55e-05]
[1734987256965,0.0214412,93277.0,93270.0,8.55e-05]
[1734987257183,0.214412,93278.0,93270.0,8.55e-05]
[1734987257827,0.214407,93281.0,93270.0,8.55e-05]
[1734987258018,0.00053011,93289.0,93274.0,0.02877453]
[1734987258230,0.10398632,93288.0,93270.0,8.55e-05]
[1734987258435,0.214424,93273.0,93270.0,8.55e-05]
[1734987258694,0.428848,93273.0,93270.0,8.55e-05]
[1734987258890,0.214428,93271.0,93270.0,8.55e-05]
[1734987259095,0.31841432,93271.0,93270.0,8.55e-05]
[1734987259296,0.46841432,93271.0,93270.0,8.55e-05]
[1734987259499,0.214478,93250.0,93246.0,0.02208549]
[1734987259799,0.214478,93250.0,93245.0,0.0816]
[1734987260144,0.428957,93250.0,93245.0,0.0816]
[1734987260365,0.214493,93243.0,93240.0,0.02877453]
[1734987260546,0.214505,93238.0,93234.0,0.0816]
[1734987260807,0.2359555,93238.0,93234.0,0.00015895]
[1734987261008,0.4504605,93238.0,93234.0,0.00015895]
[1734987261217,0.55444682,93238.0,93234.0,0.00015895]
[1734987262522,0.55444682,93238.0,93234.0,0.00024445]
[1734987262523,0.55544682,93238.0,93234.0,0.00024445]
[1734987263336,0.55444682,93238.0,93234.0,0.00024445]
[1734987263542,0.214509,93236.0,93234.0,0.00024445]
[1734987263737,0.20606856,93236.0,93234.0,0.00024445]
[1734987264696,0.20606856,93236.0,93220.0,0.03615905]
[1734987264697,0.214531,93227.0,93220.0,0.0284035]
[1734987264900,0.214531,93227.0,93220.0,0.02856275]
[1734987265104,0.214523,93231.0,93220.0,0.02856275]
[1734987265310,0.20806856,93236.0,93226.0,0.05717803]
[1734987265311,0.002,93236.0,93226.0,0.05717803]
[1734987265516,0.214506,93238.0,93227.0,0.21453]
[1734987265717,0.214506,93238.0,93226.0,0.02877453]
[1734987265922,0.214506,93238.0,93226.0,0.05717803]
[1734987266123,0.02193358,93256.0,93226.0,0.05717803]
[1734987266333,0.0364484,93246.0,93226.0,0.05717803]
[1734987266538,0.214488,93245.0,93226.0,0.05717803]
[1734987266741,0.214481,93249.0,93236.0,0.02877453]
[1734987267367,0.31844532,93258.0,93235.0,0.0818]
[1734987267368,0.214499,93241.0,93235.0,0.0818]
[1734987267649,0.214507,93237.0,93234.0,0.0284035]
[1734987267954,0.214507,93237.0,93236.0,0.001]
[1734987268160,0.214507,93237.0,93234.0,0.0284035]
[1734987268744,0.005,93241.0,93234.0,0.0284035]
[1734987269133,0.00422176,93240.0,93235.0,0.214511]
[1734987269489,0.00422176,93240.0,93239.0,0.10467803]
[1734987269695,0.00422176,93240.0,93239.0,0.28743672]
[1734987269923,0.00422176,93240.0,93239.0,0.28636435]
[1734987271534,0.00422176,93240.0,93239.0,0.28936435]
[1734987271856,0.00422176,93240.0,93239.0,0.29136435]
[1734987272100,0.00522176,93240.0,93239.0,0.29936435]
[1734987272306,0.00522176,93240.0,93239.0,0.44436435]
[1734987272508,0.00522176,93240.0,93239.0,0.44836435]
[1734987272977,0.00522176,93240.0,93239.0,0.47136435]
[1734987273180,0.214398,93285.0,93272.0,0.0284035]
[1734987273380,0.214559,93289.0,93274.0,0.214421]
[1734987273588,0.214559,93289.0,93274.0,0.2428245]
[1734987274307,0.428948,93289.0,93274.0,0.2428245]
[1734987274502,0.21508921,93289.0,93274.0,0.22182449]
[1734987274708,0.214398,93285.0,93274.0,0.0284035]
[1734987275145,0.214398,93285.0,93271.0,0.02877453]
[1734987275344,0.02150992,93285.0,93268.0,0.0809]
[1734987275550,0.214389,93288.0,93268.0,0.0809]
[1734987275780,0.214422,93274.0,93268.0,0.0809]
[1734987275943,0.214413,93278.0,93274.0,0.0284035]
[1734987276351,0.214405,93282.0,93274.0,0.0294035]
[1734987276546,0.214392,93287.0,93274.0,0.0294035]
[1734987276746,0.214404,93282.0,93274.0,0.0294035]
[1734987277726,0.214404,93282.0,93274.0,0.0284035]
[1734987277863,0.214404,93282.0,93274.0,0.0304035]
[1734987278077,0.00070121,93289.0,93282.0,0.0284035]
[1734987278272,0.00070121,93289.0,93287.0,0.0284035]
[1734987279476,0.04366313,93289.0,93287.0,0.0284035]
[1734987279682,0.00070121,93289.0,93287.0,0.00240349]
[1734987280112,0.00170121,93289.0,93287.0,0.00240349]
[1734987280315,0.00170121,93289.0,93288.0,0.21656434]
[1734987280530,0.000171,93295.0,93294.0,0.02877453]
[1734987280739,0.00032998,93295.0,93294.0,0.38573591]
[1734987280937,0.00032998,93295.0,93294.0,0.38466434]
[1734987281141,0.00032998,93295.0,93294.0,0.59904034]
[1734987281351,0.00032998,93295.0,93294.0,0.62071154]
[1734987281561,0.00032998,93295.0,93294.0,0.67713302]
[1734987281965,0.00032998,93295.0,93294.0,0.62071154]
[1734987282167,0.00032998,93295.0,93294.0,0.59904034]
[1734987282379,0.00032998,93295.0,93294.0,0.57604034]
[1734987282580,0.00432998,93295.0,93294.0,0.57604034]
[1734987283296,0.01332998,93295.0,93294.0,0.60004034]
[1734987283499,0.0001708,93309.0,93308.0,0.24282757]
[1734987283703,0.0001708,93309.0,93308.0,0.34921738]
[1734987284896,0.0011708,93309.0,93308.0,0.36021738]
[1734987285318,0.0011708,93309.0,93308.0,0.65681738]
[1734987285749,0.0011708,93309.0,93308.0,0.65281738]
[1734987286069,0.0001708,93309.0,93308.0,0.64781738]
[1734987286274,0.214259,93345.0,93327.0,0.24518806]
[1734987286519,0.00032984,93328.0,93327.0,0.24518806]
[1734987287942,0.00032984,93328.0,93327.0,0.24618806]
[1734987288543,0.00032984,93328.0,93327.0,0.24718806]
[1734987289491,0.00032984,93328.0,93327.0,0.01488805]
[1734987290262,0.00032984,93328.0,93327.0,0.002]
[1734987290462,0.21462684,93328.0,93327.0,0.002]
[1734987290982,0.21462684,93328.0,93327.0,0.001]
[1734987292333,0.42892484,93328.0,93313.0,0.01288805]
[1734987292489,0.214309,93323.0,93313.0,0.01288805]
[1734987293120,0.214309,93323.0,93308.0,0.1236]
[1734987293520,0.214319,93319.0,93308.0,0.1236]
[1734987293736,0.214319,93319.0,93306.0,0.01288805]
[1734987294136,0.21432,93318.0,93306.0,0.01288805]
[1734987294544,0.00032984,93328.0,93306.0,0.00988805]
[1734987294545,0.214316,93320.0,93306.0,0.00988805]
[1734987295234,0.00032984,93328.0,93298.0,0.0828]
[1734987295408,0.10398632,93327.0,93302.0,0.00988805]
[1734987295652,0.214336,93312.0,93302.0,0.00988805]
[1734987295852,0.214367,93298.0,93287.0,0.0823]
[1734987296073,0.214381,93292.0,93280.0,0.0499]
[1734987296480,0.214381,93292.0,93283.0,0.00988805]
[1734987296700,0.214369,93297.0,93283.0,0.00988805]
[1734987297316,0.214332,93313.0,93283.0,0.00988805]
[1734987297317,0.02133333,93320.0,93288.0,0.00988805]
[1734987297518,0.15,93318.0,93288.0,0.00988805]
[1734987297726,0.214353,93304.0,93288.0,0.00988805]
[1734987297932,0.001,93298.0,93288.0,0.00988805]
[1734987298361,0.214353,93304.0,93289.0,0.00988805]
[1734987298742,0.214363,93300.0,93289.0,0.00988805]
[1734987299168,0.428726,93300.0,93289.0,0.00988805]
[1734987299318,0.428726,93300.0,93288.0,0.001]
[1734987299516,0.214336,93312.0,93289.0,0.00688805]
[1734987299723,0.214367,93298.0,93284.0,0.00688805]
[1734987300359,0.10398632,93298.0,93283.0,0.00015898]
[1734987300596,0.02753197,93317.0,93283.0,0.00015898]
[1734987300597,0.02753197,93317.0,93291.0,0.00688805]
[1734987300803,0.214339,93310.0,93295.0,0.00688805]
[1734987301008,0.214332,93314.0,93296.0,0.11087437]
[1734987301181,0.214332,93314.0,93300.0,0.00688805]
[1734987301954,0.214317,93320.0,93304.0,0.00688805]
[1734987301955,0.005,93317.0,93304.0,0.00688805]
[1734987302160,0.005,93317.0,93310.0,0.00688805]
[1734987302357,0.0001708,93328.0,93310.0,0.00107167]
[1734987302619,0.21432,93319.0,93303.0,0.22124205]
[1734987302778,0.21432,93319.0,93304.0,0.10398632]
[1734987303160,0.214312,93322.0,93310.0,0.00688805]
[1734987303411,0.25719018,93322.0,93310.0,0.00688805]
[1734987303727,0.214312,93322.0,93310.0,0.00688805]
[1734987303925,0.2143,93327.0,93310.0,0.00688805]
[1734987304159,0.2143,93327.0,93311.0,0.214337]
[1734987304592,0.214302,93326.0,93311.0,0.194337]
[1734987305135,0.002,93327.0,93326.0,0.00688805]
[1734987305369,0.00215904,93327.0,93326.0,0.22119005]
[1734987305576,0.00215904,93327.0,93326.0,0.37427637]
[1734987305577,0.00015904,93327.0,93326.0,0.37427637]
[1734987305774,0.00015904,93327.0,93326.0,0.41993974]
[1734987305998,0.00015904,93327.0,93326.0,0.37427637]
[1734987306354,0.00015904,93327.0,93326.0,0.15997437]
[1734987306557,0.214315,93321.0,93319.0,0.0784]
[1734987306939,0.00015904,93327.0,93312.0,0.00688805]
[1734987307149,0.00015904,93327.0,93326.0,0.00688805]
[1734987308331,0.00015904,93327.0,93326.0,0.11087437]
[1734987309433,0.00015904,93327.0,93326.0,0.00688805]
[1734987309651,0.00015904,93327.0,93321.0,0.214313]
[1734987309855,0.00015904,93327.0,93322.0,0.10398632]
[1734987310056,0.00015904,93327.0,93312.0,0.15]
[1734987310180,0.00015904,93327.0,93312.0,0.25398632]
[1734987310380,0.00015904,93327.0,93315.0,0.214325]
[1734987310801,0.00015904,93327.0,93314.0,0.15]
[1734987310802,0.214302,93326.0,93314.0,0.15]
[1734987311022,0.04289258,93325.0,93297.0,0.214367]
[1734987311202,0.214317,93320.0,93308.0,0.15]
[1734987311400,0.214317,93320.0,93303.0,0.214354]
[1734987311809,0.214317,93320.0,93307.0,0.293745]
[1734987312205,0.214317,93320.0,93307.0,0.0794]
[1734987312206,0.214332,93313.0,93307.0,0.0794]
[1734987312581,0.214325,93316.0,93307.0,0.0794]
[1734987313675,0.00033004,93327.0,93307.0,0.0794]
[1734987314179,0.214335,93312.0,93307.0,0.0794]
[1734987314383,0.214328,93315.0,93307.0,0.0794]
[1734987314586,0.214328,93315.0,93307.0,0.0634]
[1734987314724,0.214328,93315.0,93310.0,0.002]
[1734987315220,0.214328,93315.0,93310.0,0.005]
[1734987315343,0.214328,93315.0,93308.0,0.00634]
[1734987315756,0.21463004,93327.0,93307.0,0.0654]
[1734987315757,0.00033004,93327.0,93307.0,0.0654]
[1734987315937,0.214329,93315.0,93307.0,0.0654]
[1734987316136,0.214329,93315.0,93307.0,0.0644]
[1734987316712,0.214329,93315.0,93307.0,0.0634]
[1734987318048,0.214321,93318.0,93307.0,0.0634]
[1734987318180,0.214325,93316.0,93307.0,0.0634]
[1734987318781,0.214321,93318.0,93307.0,0.0644]
[1734987318954,0.214321,93318.0,93307.0,0.0654]
[1734987319391,0.214321,93318.0,93307.0,0.0644]
[1734987319533,0.214321,93318.0,93307.0,0.0514]
[1734987319734,0.214302,93326.0,93307.0,0.58307732]
[1734987319932,0.00033004,93327.0,93311.0,0.214336]
[1734987320131,0.00033004,93327.0,93319.0,0.214317]
[1734987320480,0.00033004,93327.0,93323.0,0.428615]
[1734987320671,0.00033004,93327.0,93324.0,0.10398632]
[1734987320874,0.00033004,93327.0,93325.0,0.21537539]
[1734987321041,0.00033004,93327.0,93326.0,0.10398632]
[1734987321237,0.00033004,93327.0,93326.0,0.27805763]
[1734987321442,0.0138583,93335.0,93334.0,0.387284]
[1734987321647,0.0138583,93335.0,93334.0,0.55875816]
[1734987322014,0.0138583,93335.0,93334.0,0.566687]
[1734987322248,0.0001708,93356.0,93354.0,0.214238]
[1734987322454,0.00032981,93355.0,93354.0,0.31822432]
[1734987322641,0.00032981,93355.0,93354.0,0.10398632]
[1734987322842,0.00032981,93355.0,93350.0,0.0796]
[1734987323484,0.00032981,93355.0,93354.0,0.007]
[1734987323889,0.00032981,93355.0,93354.0,0.16367436]
[1734987324124,0.00032981,93355.0,93354.0,0.11098632]
[1734987324566,0.00032981,93355.0,93354.0,0.08798632]
[1734987325101,0.00032981,93355.0,93354.0,0.08905733]
[1734987325526,0.00032981,93355.0,93354.0,0.09305733]
[1734987325841,0.00032981,93355.0,93354.0,0.10105733]
[1734987326200,0.00032981,93355.0,93354.0,0.10605733]
[1734987326606,0.214175,93382.0,93354.0,0.10605733]
[1734987326607,0.214175,93382.0,93354.0,0.09805733]
[1734987326786,0.214187,93376.0,93360.0,0.214222]
[1734987327686,0.0001708,93379.0,93365.0,0.214211]
[1734987327886,0.0001708,93379.0,93362.0,0.1256]
[1734987328092,0.0001708,93379.0,93363.0,0.31820132]
[1734987328306,0.002,93376.0,93369.0,0.214201]
[1734987328708,0.0011708,93379.0,93364.0,0.25870223]
[1734987328913,0.0011708,93379.0,93366.0,0.21421]
[1734987329122,0.0011708,93379.0,93367.0,0.10398632]
[1734987329365,0.0011708,93379.0,93368.0,0.214206]
[1734987329574,0.0051708,93379.0,93368.0,0.16520598]
[1734987329750,0.0011708,93379.0,93368.0,0.16520598]
[1734987329952,0.0011708,93379.0,93369.0,0.06090073]
[1734987330151,0.0011708,93379.0,93370.0,0.214201]
[1734987330817,0.0001708,93379.0,93368.0,0.16520598]
[1734987331019,0.0001708,93379.0,93370.0,0.214201]
[1734987331381,0.0001708,93379.0,93370.0,0.26284033]
[1734987331866,0.0001708,93379.0,93370.0,0.26484033]
[1734987332572,0.0001708,93379.0,93370.0,0.216201]
[1734987334354,0.0001708,93379.0,93370.0,0.430402]
[1734987334559,0.0001708,93379.0,93370.0,0.38740199]
[1734987334790,0.0001708,93379.0,93370.0,0.002]
[1734987334994,0.0001708,93379.0,93374.0,0.428382]
[1734987335197,0.0001708,93379.0,93376.0,0.262087]
[1734987335407,0.0001708,93379.0,93378.0,0.214183]
[1734987335604,0.0001708,93379.0,93378.0,0.31816932]
[1734987336440,0.0071708,93379.0,93378.0,0.31816932]
[1734987336645,0.0001708,93379.0,93378.0,0.31816932]
[1734987336844,0.0001708,93379.0,93378.0,0.33197085]
[1734987337608,0.0001708,93379.0,93376.0,0.0479]
[1734987337836,0.0001708,93379.0,93377.0,0.10398632]
[1734987338015,0.0001708,93379.0,93378.0,0.001]
[1734987338218,0.0031708,93379.0,93378.0,0.001]
[1734987338875,0.0001708,93379.0,93376.0,0.0479]
[1734987339018,0.0001708,93379.0,93377.0,0.002]
[1734987339425,0.0001708,93379.0,93368.0,0.214204]
[1734987339643,0.0051708,93379.0,93378.0,0.001]
[1734987339844,0.0051708,93379.0,93378.0,0.002]
[1734987340040,0.0051708,93379.0,93378.0,0.216183]
[1734987340538,0.0051708,93379.0,93378.0,0.64250692]
[1734987340765,0.0051708,93379.0,93378.0,0.49250692]
[1734987341171,0.0051708,93379.0,93378.0,0.49050692]
[1734987341374,0.0001708,93379.0,93378.0,0.49050692]
[1734987342176,0.0011708,93379.0,93378.0,0.49750692]
[1734987342360,0.0001708,93379.0,93378.0,0.49050692]
[1734987342725,0.0011708,93379.0,93378.0,0.50250692]
[1734987342928,0.0011708,93379.0,93378.0,0.45946932]
[1734987344465,0.0011708,93379.0,93378.0,0.63246932]
[1734987344699,0.0011708,93379.0,93378.0,0.60946932]
[1734987345642,0.0001708,93379.0,93378.0,0.59746932]
[1734987345875,0.0001708,93379.0,93378.0,0.60246932]
[1734987346232,7e-05,93399.0,93381.0,0.15]
[1734987346441,0.00132992,93389.0,93386.0,0.15]
[1734987346671,0.00132992,93389.0,93380.0,0.214178]
[1734987346882,0.00132992,93389.0,93382.0,0.214174]
[1734987347105,0.00132992,93389.0,93387.0,0.21416]
[1734987347339,0.00132992,93389.0,93388.0,0.05323173]
[1734987347541,0.00132992,93389.0,93388.0,0.10398632]
[1734987348511,0.00232992,93389.0,93387.0,0.011]
[1734987348673,0.00132992,93389.0,93387.0,0.214161]
[1734987348883,0.00132992,93389.0,93378.0,0.1293]
[1734987349100,0.21648692,93389.0,93388.0,0.01]
[1734987349319,0.00232992,93389.0,93388.0,0.003]
[1734987349564,0.00232992,93389.0,93388.0,0.21716]
[1734987349880,0.00232992,93389.0,93388.0,0.32114632]
[1734987350326,0.00232992,93389.0,93388.0,0.31814632]
[1734987350551,0.00332992,93389.0,93388.0,0.008]
[1734987350932,0.00132992,93389.0,93387.0,0.003]
[1734987351143,0.214148,93394.0,93387.0,0.003]
[1734987351327,0.20703209,93394.0,93388.0,0.004]
[1734987351556,0.214156,93390.0,93388.0,0.003]
[1734987351765,0.00015891,93398.0,93388.0,0.003]
[1734987351943,0.001,93389.0,93388.0,0.008]
[1734987352145,0.001,93389.0,93381.0,0.214174]
[1734987352351,0.001,93389.0,93387.0,0.001]
[1734987352561,0.001,93389.0,93388.0,0.003]
[1734987353833,0.214158,93389.0,93377.0,0.214183]
[1734987354036,0.214139,93397.0,93361.0,0.36422]
[1734987354242,0.214182,93379.0,93369.0,0.10398632]
[1734987354448,0.214146,93394.0,93361.0,0.36422]
[1734987354653,0.214193,93374.0,93362.0,0.00792917]
[1734987354838,0.214185,93377.0,93361.0,0.36422]
[1734987355077,0.0798,93393.0,93365.0,0.214211]
[1734987355250,0.214175,93382.0,93365.0,0.214211]
[1734987355467,0.214175,93382.0,93369.0,0.002]
[1734987355612,0.214159,93389.0,93370.0,0.00107091]
[1734987355832,0.214159,93389.0,93376.0,0.214185]
[1734987356013,0.428318,93389.0,93376.0,0.214185]
[1734987356846,0.00015891,93398.0,93376.0,0.214185]
[1734987357119,0.0042189,93392.0,93376.0,0.214185]
[1734987357498,0.0042189,93392.0,93372.0,0.214196]
[1734987357827,0.0042189,93392.0,93374.0,0.214192]
[1734987358033,0.0042189,93392.0,93374.0,0.10398632]
[1734987358387,0.0052189,93392.0,93379.0,0.214179]
[1734987358588,0.0052189,93392.0,93380.0,0.10398632]
[1734987358789,0.0052189,93392.0,93382.0,0.0807]
[1734987358988,0.0052189,93392.0,93389.0,0.214157]
[1734987359489,0.0052189,93392.0,93389.0,0.198157]
[1734987359895,0.0052189,93392.0,93389.0,0.412314]
[1734987360094,0.0062189,93392.0,93389.0,0.412314]
[1734987360296,0.0052189,93392.0,93389.0,0.412314]
[1734987360527,0.0062189,93392.0,93391.0,0.214153]
[1734987360673,0.0052189,93392.0,93391.0,0.31813932]
[1734987360895,0.0042189,93392.0,93391.0,0.31813932]
[1734987361808,0.0052189,93392.0,93391.0,0.33013932]
[1734987363216,0.0052189,93392.0,93391.0,0.48013932]
[1734987363420,9e-07,93392.0,93391.0,0.50313932]
[1734987364082,9e-07,93392.0,93391.0,0.51105217]
[1734987364285,9e-07,93392.0,93391.0,0.58725217]
[1734987365519,9e-07,93392.0,93391.0,0.58325217]
[1734987365705,9e-07,93392.0,93391.0,0.65352443]
[1734987365913,9e-07,93392.0,93391.0,0.58324547]
[1734987366054,0.00015891,93398.0,93397.0,0.214139]
[1734987366248,0.000171,93403.0,93398.0,0.15]
[1734987366455,0.000171,93403.0,93398.0,0.27805674]
[1734987366657,0.000171,93403.0,93398.0,0.27698632]
[1734987367274,0.000171,93403.0,93398.0,0.28489247]
[1734987367475,0.214007,93455.0,93398.0,0.28489247]
[1734987367476,0.08924365,93466.0,93398.0,0.41139247]
[1734987367678,0.08924365,93466.0,93465.0,0.95846932]
[1734987367679,0.04644965,93466.0,93465.0,0.95846932]
[1734987367898,0.04660859,93466.0,93465.0,0.49096932]
[1734987368104,0.04660859,93466.0,93465.0,0.31796932]
[1734987368493,0.00015894,93466.0,93465.0,0.46796932]
[1734987370291,0.00015894,93466.0,93465.0,0.88341197]
[1734987371328,0.0001706,93493.0,93485.0,0.213938]
[1734987371527,0.00070019,93486.0,93485.0,0.213938]
[1734987372476,0.00070019,93486.0,93479.0,0.213951]
[1734987372613,0.00070019,93486.0,93480.0,0.213949]
[1734987372814,0.00070019,93486.0,93485.0,0.213938]
[1734987373438,0.00070019,93486.0,93485.0,0.24474808]
[1734987373640,0.00070019,93486.0,93485.0,0.218938]
[1734987374055,0.00070019,93486.0,93485.0,0.213938]
[1734987374268,0.00070019,93486.0,93485.0,0.215938]
[1734987374472,0.00070019,93486.0,93485.0,0.17393798]
[1734987374638,0.00070019,93486.0,93485.0,0.17193798]
[1734987375007,0.00070019,93486.0,93485.0,0.17393798]
[1734987375421,0.00070019,93486.0,93485.0,0.17793798]
[1734987375820,0.00070019,93486.0,93485.0,0.17993798]
[1734987376466,0.00070019,93486.0,93485.0,0.008]
[1734987379509,0.00070019,93486.0,93474.0,0.31794732]
[1734987379708,0.00070019,93486.0,93474.0,0.53190932]
[1734987379929,0.00070019,93486.0,93467.0,0.0941628]
[1734987380159,0.00070019,93486.0,93468.0,0.19814912]
[1734987380329,0.213933,93488.0,93469.0,0.213973]
[1734987380534,0.00472412,93485.0,93470.0,0.10398632]
[1734987380731,0.213923,93492.0,93471.0,0.21397]
[1734987380732,0.0047281,93487.0,93471.0,0.21397]
[1734987380932,0.213923,93492.0,93474.0,0.006]
[1734987381173,0.00477859,93486.0,93474.0,0.002]
[1734987381465,0.00472214,93485.0,93475.0,0.21396]
[1734987381698,0.005,93488.0,93475.0,0.21396]
[1734987381879,0.002,93487.0,93473.0,0.213965]
[1734987382083,0.00677429,93487.0,93473.0,0.37119639]
[1734987382255,0.15,93510.0,93473.0,0.37119639]
[1734987382463,0.09065057,93508.0,93473.0,0.37119639]
[1734987382672,0.213921,93493.0,93475.0,0.003]
[1734987382868,0.10398632,93493.0,93475.0,0.003]
[1734987383050,0.01039863,93492.0,93475.0,0.003]
[1734987383251,0.10398632,93493.0,93475.0,0.003]
[1734987383474,0.213941,93484.0,93475.0,0.003]
[1734987383798,0.213943,93483.0,93468.0,0.00052939]
[1734987384007,0.005,93508.0,93470.0,0.16220213]
[1734987384205,0.005,93492.0,93481.0,0.213945]
[1734987384437,0.21389,93506.0,93476.0,0.213958]
[1734987384643,0.363892,93505.0,93477.0,0.10398632]
[1734987384845,0.006,93484.0,93477.0,0.10398632]
[1734987385230,0.006,93484.0,93478.0,0.213954]
[1734987385433,0.006,93484.0,93478.0,0.31794032]
[1734987385794,0.006,93484.0,93478.0,0.10398632]
[1734987386016,0.006,93484.0,93476.0,0.213958]
[1734987386017,0.213929,93489.0,93473.0,8.53e-05]
[1734987386277,0.213896,93503.0,93474.0,0.213963]
[1734987386498,0.213911,93497.0,93475.0,0.31794632]
[1734987386682,0.213911,93497.0,93475.0,0.10398632]
[1734987386929,0.213911,93497.0,93478.0,0.002]
[1734987387455,0.213911,93497.0,93476.0,0.213958]
[1734987387692,0.213901,93501.0,93476.0,0.10398632]
[1734987387863,0.13350642,93500.0,93473.0,8.53e-05]
[1734987388211,0.213906,93499.0,93473.0,8.53e-05]
[1734987388444,0.213927,93490.0,93473.0,8.53e-05]
[1734987389248,0.003,93497.0,93473.0,8.53e-05]
[1734987389441,0.213917,93495.0,93472.0,0.2130513]
[1734987389649,0.003,93497.0,93468.0,0.00052939]
[1734987389650,0.002,93490.0,93481.0,0.259746]
[1734987390305,0.003,93490.0,93481.0,0.259746]
[1734987390514,0.001,93490.0,93481.0,0.0458]
[1734987391328,0.001,93490.0,93470.0,0.15]
[1734987391744,0.213926,93491.0,93469.0,0.213974]
[1734987391950,0.001,93490.0,93469.0,0.213974]
[1734987392310,0.213931,93488.0,93481.0,0.001]
[1734987392550,0.0138583,93519.0,93481.0,0.001]
[1734987392551,0.213899,93502.0,93481.0,0.001]
[1734987392753,0.003,93490.0,93481.0,0.001]
[1734987392973,0.213937,93486.0,93481.0,0.001]
[1734987393214,0.213908,93499.0,93470.0,0.213972]
[1734987393384,0.001,93488.0,93471.0,0.02849712]
[1734987393553,0.0494,93517.0,93466.0,0.0464]
[1734987393554,0.213916,93495.0,93472.0,0.10398632]
[1734987393789,0.213916,93495.0,93473.0,0.00106974]
[1734987393975,0.002,93490.0,93473.0,0.10505606]
[1734987394490,0.002,93490.0,93473.0,0.213964]
[1734987394689,0.213931,93488.0,93468.0,0.00052939]
[1734987394947,0.00106978,93487.0,93470.0,0.363971]
[1734987395448,0.00106978,93487.0,93470.0,0.213971]
[1734987395648,0.00106978,93487.0,93469.0,0.10398632]
[1734987395788,0.001,93488.0,93469.0,0.10398632]
[1734987395997,0.001,93487.0,93469.0,0.11907789]
[1734987396199,0.00106978,93486.0,93469.0,0.11907789]
[1734987396841,0.213938,93485.0,93469.0,0.11907789]
[1734987397042,0.00106978,93484.0,93469.0,0.10398632]
[1734987397252,0.001,93487.0,93468.0,0.00052939]
[1734987397607,0.1050561,93486.0,93468.0,0.00052939]
[1734987397732,0.213965,93474.0,93468.0,0.00052939]
[1734987397931,0.00106978,93473.0,93468.0,0.00052939]
[1734987398163,0.213957,93477.0,93468.0,0.00052939]
[1734987398377,0.00106978,93476.0,93468.0,0.00052939]
[1734987398572,0.213959,93476.0,93468.0,0.00061469]
[1734987398836,0.00106978,93475.0,93468.0,0.00061469]
[1734987399026,0.213951,93479.0,93468.0,0.00061469]
[1734987399027,0.213956,93477.0,93468.0,0.00061469]
[1734987399226,0.00106978,93476.0,93468.0,0.00061469]
[1734987399397,0.21396,93475.0,93468.0,0.00061469]
[1734987399602,0.213974,93469.0,93468.0,0.00061469]
[1734987399826,0.39386032,93469.0,93468.0,0.00061469]
[1734987400835,0.31796032,93469.0,93468.0,0.00061469]
[1734987401256,0.46796032,93469.0,93468.0,0.00061469]
[1734987401454,0.214042,93440.0,93426.0,0.0471]
[1734987401673,0.214055,93434.0,93426.0,0.00015894]
[1734987401869,0.214047,93438.0,93426.0,0.00015894]
[1734987402981,0.21010478,93443.0,93426.0,0.00015894]
[1734987403183,0.214033,93444.0,93426.0,0.00015894]
[1734987403388,0.214033,93444.0,93426.0,0.05099153]
[1734987403604,0.008,93440.0,93426.0,0.05199153]
[1734987403818,0.214033,93444.0,93426.0,0.05099153]
[1734987404048,0.214033,93444.0,93426.0,0.00015894]
[1734987404237,0.15,93454.0,93427.0,0.21407]
[1734987404381,0.15,93454.0,93427.0,0.10398632]
[1734987404585,0.213989,93463.0,93428.0,0.25505658]
[1734987404791,0.1,93480.0,93440.0,0.0773]
[1734987405112,0.213986,93464.0,93445.0,0.214029]
[1734987405317,0.21397,93471.0,93445.0,0.214029]
[1734987405318,0.213981,93467.0,93445.0,0.428058]
[1734987405725,0.21399,93463.0,93445.0,0.209029]
[1734987406561,0.14595054,93479.0,93440.0,0.18228632]